bitfinex-derivatives/quotes_SOLF0:USTF0_20260217
["timestamp","ask_amount","ask_price","bid_price","bid_amount"]
[1771341496198,22.49548975,83.91,83.77,27.28161339]
[1771341496199,4.65196743,83.869,83.77,27.28161339]
[1771341496494,10.7397,83.847,83.77,4.78612364]
[1771341496695,4.65196743,83.848,83.771,4.78612364]
[1771341497485,10.7397,83.847,83.771,15.53552364]
[1771341497686,4.65196743,83.846,83.771,4.78612364]
[1771341497893,4.65196743,83.839,83.749,4.78612364]
[1771341498088,10.7457,83.801,83.723,4.78612364]
[1771341498291,10.7457,83.801,83.71,14.95799918]
[1771341498292,4.65196743,83.811,83.71,14.95799918]
[1771341498494,10.7506,83.763,83.699,4.78612364]
[1771341499092,10.7506,83.763,83.617,36.0]
[1771341499093,4.65196743,83.768,83.678,4.78612364]
[1771341499486,4.65196743,83.768,83.64,167.4744]
[1771341499487,4.65196743,83.768,83.681,4.78612364]
[1771341499697,10.7488,83.777,83.701,4.78612364]
[1771341500398,4.65196743,83.811,83.705,4.78612364]
[1771341500894,4.65196743,83.811,83.721,4.78612364]
[1771341501301,15.39636743,83.811,83.738,4.78612364]
[1771341501492,10.7444,83.811,83.741,4.78612364]
[1771341502398,10.7458,83.8,83.741,4.78612364]
[1771341502598,10.7458,83.8,83.72,14.95799918]
[1771341502599,4.65196743,83.819,83.72,14.95799918]
[1771341502799,14.95799918,83.82,83.719,4.78612364]
[1771341502800,4.65196743,83.817,83.719,4.78612364]
[1771341502995,4.65196743,83.817,83.74,14.95799918]
[1771341503201,4.65196743,83.817,83.741,4.78612364]
[1771341503589,10.7451,83.805,83.741,4.78612364]
[1771341503793,4.65196743,83.817,83.741,4.78612364]
[1771341503997,10.7473,83.788,83.721,4.78612364]
[1771341504203,75.22,83.816,83.721,4.78612364]
[1771341504204,4.65196743,83.815,83.721,4.78612364]
[1771341504400,4.65196743,83.809,83.721,4.78612364]
[1771341504700,4.65196743,83.809,83.725,4.78612364]
[1771341505098,10.7482,83.781,83.725,4.78612364]
[1771341505292,4.65196743,83.809,83.701,4.78612364]
[1771341505496,4.65196743,83.807,83.702,4.78612364]
[1771341505702,10.7489,83.776,83.702,4.78612364]
[1771341505894,10.7489,83.776,83.72,10.89571541]
[1771341506092,4.65196743,83.779,83.7,6.10959177]
[1771341506899,10.7511,83.759,83.7,6.10959177]
[1771341507204,10.7511,83.759,83.701,4.78612364]
[1771341507400,10.7511,83.759,83.644,36.0]
[1771341507401,10.754,83.736,83.678,4.78612364]
[1771341507699,4.65196743,83.75,83.681,4.78612364]
[1771341507700,6.10959177,83.75,83.681,4.78612364]
[1771341507896,4.65196743,83.764,83.681,4.78612364]
[1771341507897,6.10959177,83.76,83.681,4.78612364]
[1771341508210,10.7533,83.741,83.681,4.78612364]
[1771341508699,10.7615592,83.76,83.681,4.78612364]
[1771341509092,4.65196743,83.759,83.681,4.78612364]
[1771341509293,6.10959177,83.78,83.701,4.78612364]
[1771341509602,4.65196743,83.782,83.701,4.78612364]
[1771341509802,10.7502,83.766,83.701,4.78612364]
[1771341510199,75.22,83.791,83.652,4.78612364]
[1771341510200,6.10959177,83.73,83.652,4.78612364]
[1771341510409,4.65196743,83.729,83.652,4.78612364]
[1771341510601,4.65196743,83.709,83.63,6.10959177]
[1771341511102,4.65196743,83.709,83.631,4.78612364]
[1771341513002,10.7622,83.672,83.631,4.78612364]
[1771341513704,4.65196743,83.709,83.631,4.78612364]
[1771341514899,6.10959177,83.69,83.611,4.78612364]
[1771341515299,4.65196743,83.689,83.611,4.78612364]
[1771341516104,167.3055,83.726,83.581,4.78612364]
[1771341516105,4.65196743,83.669,83.581,4.78612364]
[1771341516313,21.5163,83.704,83.541,21.5579]
[1771341516314,6.10959177,83.68,83.591,4.78612364]
[1771341516506,10.7615592,83.68,83.591,4.78612364]
[1771341516912,4.65196743,83.679,83.591,4.78612364]
[1771341517606,10.7636,83.661,83.605,10.7707]
[1771341517906,4.65196743,83.669,83.591,4.78612364]
[1771341518711,4.65196743,83.669,83.593,4.78612364]
[1771341519410,4.65196743,83.669,83.575,4.78612364]
[1771341519607,4.65196743,83.668,83.575,4.78612364]
[1771341520411,4.65196743,83.668,83.585,10.7733]
[1771341520610,4.65196743,83.668,83.575,4.78612364]
[1771341520907,4.65196743,83.668,83.593,10.7722]
[1771341521307,4.65196743,83.668,83.575,4.78612364]
[1771341522612,4.65196743,83.668,83.57,90.27679164]
[1771341522613,10.7629,83.667,83.598,4.78612364]
[1771341523008,10.7624,83.67,83.61,10.7701]
[1771341523311,75.28,83.684,83.598,4.78612364]
[1771341523510,4.65196743,83.689,83.598,4.78612364]
[1771341523807,10.7639,83.659,83.599,10.7715]
[1771341524607,10.7651,83.649,83.598,4.78612364]
[1771341524806,10.7651,83.649,83.577,4.22821398]
[1771341525007,75.28,83.667,83.577,4.22821398]
[1771341525312,10.764,83.658,83.596,4.22821398]
[1771341525516,4.29132593,83.666,83.596,4.22821398]
[1771341525701,15.01679164,83.69,83.596,4.22821398]
[1771341525702,10.7626,83.669,83.617,10.7691]
[1771341526314,10.7614,83.679,83.617,10.7691]
[1771341526714,4.29132593,83.678,83.617,10.7691]
[1771341526907,4.29132593,83.678,83.596,4.22821398]
[1771341526908,10.7637,83.661,83.604,10.7708]
[1771341527108,4.29132593,83.689,83.596,4.22821398]
[1771341527509,21.5097,83.73,83.59,15.01679164]
[1771341527510,4.29132593,83.709,83.617,4.22821398]
[1771341527710,4.29132593,83.709,83.547,4.22821398]
[1771341527711,15.01679164,83.67,83.547,4.22821398]
[1771341528012,15.01679164,83.67,83.561,4.22821398]
[1771341528013,4.29132593,83.669,83.561,4.22821398]
[1771341528217,4.29132593,83.669,83.584,4.22821398]
[1771341529113,4.29132593,83.689,83.588,4.22821398]
[1771341529419,4.29132593,83.689,83.612,4.22821398]
[1771341529420,10.7603,83.687,83.612,4.22821398]
[1771341529624,4.29132593,83.709,83.612,4.22821398]
[1771341529922,4.29132593,83.709,83.614,4.22821398]
[1771341530123,10.7563,83.718,83.664,10.7631]
[1771341530317,10.7563,83.718,83.659,75.3]
[1771341530516,10.7563,83.718,83.664,10.7631]
[1771341530714,10.7552,83.727,83.659,75.3]
[1771341530915,4.29132593,83.728,83.659,75.3]
[1771341531224,4.29132593,83.728,83.672,10.7621]
[1771341531423,4.29132593,83.728,83.673,75.3]
[1771341531621,4.29132593,83.728,83.674,75.3]
[1771341532118,4.29132593,83.728,83.675,10.7617]
[1771341532526,4.29132593,83.728,83.672,75.3]
[1771341533222,10.7563,83.718,83.662,4.34560779]
[1771341533526,4.27717266,83.717,83.641,4.34560779]
[1771341533712,4.27717266,83.717,83.62,15.01679164]
[1771341533713,4.27717266,83.717,83.643,4.34560779]
[1771341534230,4.27717266,83.717,83.644,4.34560779]
[1771341534725,4.27717266,83.717,83.645,75.28]
[1771341534928,4.27717266,83.717,83.646,75.28]
[1771341535319,10.7566,83.716,83.648,4.34560779]
[1771341535523,4.27717266,83.717,83.648,4.34560779]
[1771341535917,4.27717266,83.717,83.657,4.34560779]
[1771341536126,4.27717266,83.717,83.658,75.28]
[1771341536526,4.27717266,83.717,83.658,86.0439]
[1771341536727,4.27717266,83.717,83.659,75.28]
[1771341536928,4.27717266,83.717,83.658,10.7639]
[1771341536929,4.27717266,83.717,83.66,75.28]
[1771341537430,15.01679164,83.73,83.662,4.34560779]
[1771341537730,10.7558,83.722,83.663,75.28]
[1771341537929,6.12005658,83.72,83.663,75.28]
[1771341538823,6.12005658,83.73,83.669,10.7625]
[1771341539226,10.7552,83.726,83.67,75.28]
[1771341539425,6.12005658,83.73,83.671,4.34560779]
[1771341539825,6.12005658,83.73,83.672,75.28]
[1771341540231,6.12005658,83.8,83.673,4.34560779]
[1771341540425,167.0795,83.839,83.65,6.12005658]
[1771341540426,6.12005658,83.78,83.717,4.34560779]
[1771341540729,4.27717266,83.779,83.718,75.28]
[1771341540919,6.12005658,83.8,83.721,4.34560779]
[1771341541120,4.27717266,83.803,83.74,10.46566437]
[1771341541319,4.27717266,83.803,83.741,75.28]
[1771341541535,4.27717266,83.823,83.75,6.12005658]
[1771341541738,6.12005658,83.81,83.742,4.34560779]
[1771341541932,6.12005658,83.81,83.743,75.28]
[1771341541933,4.27717266,83.809,83.743,75.28]
[1771341542131,10.7483,83.781,83.721,4.34560779]
[1771341542425,10.7483,83.781,83.66,167.4345]
[1771341542426,4.27717266,83.83,83.751,4.34560779]
[1771341542631,4.27717266,83.83,83.771,4.34560779]
[1771341542927,4.27717266,83.83,83.771,79.60560779]
[1771341543226,10.7425,83.825,83.771,4.34560779]
[1771341543424,10.7425,83.825,83.771,79.60560779]
[1771341543617,4.27717266,83.83,83.771,79.60560779]
[1771341543822,75.26,83.888,83.772,4.34560779]
[1771341543823,4.27717266,83.849,83.772,4.34560779]
[1771341544620,4.27717266,83.849,83.774,4.34560779]
[1771341545331,10.7409,83.838,83.775,10.7488]
[1771341545532,10.7409,83.838,83.776,4.34560779]
[1771341545826,75.26,83.888,83.795,4.34560779]
[1771341545827,4.27717266,83.871,83.795,4.34560779]
[1771341546232,4.27717266,83.859,83.79,6.12005658]
[1771341546638,4.27717266,83.859,83.775,4.34560779]
[1771341547029,10.7414,83.834,83.775,4.34560779]
[1771341547535,10.7412,83.836,83.775,4.34560779]
[1771341548041,4.27717266,83.84,83.775,4.34560779]
[1771341548431,4.27717266,83.859,83.791,4.34560779]
[1771341549532,10.7407,83.84,83.791,4.34560779]
[1771341549732,10.7407,83.84,83.79,6.12005658]
[1771341550134,4.27717266,83.859,83.775,10.7488]
[1771341550135,4.27717266,83.859,83.775,4.34560779]
[1771341550339,4.27717266,83.859,83.696,21.5182]
[1771341550340,4.27717266,83.789,83.699,4.34560779]
[1771341550543,6.12005658,83.8,83.69,6.12005658]
[1771341550544,4.27717266,83.769,83.69,6.12005658]
[1771341550839,4.27717266,83.769,83.681,4.34560779]
[1771341551540,4.27717266,83.759,83.681,4.34560779]
[1771341551936,10.7542,83.734,83.681,4.34560779]
[1771341552942,10.753,83.744,83.681,4.34560779]
[1771341553240,4.27717266,83.759,83.681,4.34560779]
[1771341553645,4.27717266,83.759,83.7,10.46566437]
[1771341553941,4.27717266,83.779,83.701,4.34560779]
[1771341554239,167.1231,83.817,83.65,6.12005658]
[1771341554240,4.27717266,83.759,83.681,4.34560779]
[1771341554637,10.7512,83.758,83.694,4.34939953]
[1771341555241,10.7512,83.758,83.699,4.34939953]
[1771341555739,10.7524,83.748,83.701,4.34939953]
[1771341555936,6.12005658,83.8,83.608,167.5396]
[1771341555937,4.32297912,83.749,83.679,4.34939953]
[1771341556843,4.32297912,83.749,83.656,15.11359953]
[1771341557028,4.32297912,83.729,83.656,4.34939953]
[1771341557347,4.32297912,83.729,83.658,4.34939953]
[1771341557348,10.7557,83.723,83.658,4.34939953]
[1771341557535,4.32297912,83.729,83.658,4.34939953]
[1771341558645,10.7578,83.707,83.658,4.34939953]
[1771341558838,4.32297912,83.729,83.65,6.12046585]
[1771341559151,4.32297912,83.729,83.638,4.34939953]
[1771341559152,10.7603,83.687,83.638,4.34939953]
[1771341559445,10.7603,83.687,83.63,6.12046585]
[1771341559646,4.32297912,83.699,83.618,4.34939953]
[1771341559948,6.12046585,83.7,83.597,4.34939953]
[1771341559949,4.32297912,83.679,83.597,4.34939953]
[1771341560449,6.12046585,83.68,83.59,6.12046585]
[1771341560450,4.32297912,83.667,83.598,4.34939953]
[1771341561445,10.763,83.666,83.598,4.34939953]
[1771341562043,10.763,83.666,83.603,10.771]
[1771341562552,10.763,83.666,83.61,6.12046585]
[1771341562752,4.32297912,83.667,83.61,6.12046585]
[1771341563356,10.763,83.666,83.61,6.12046585]
[1771341564858,10.763,83.666,83.611,4.34939953]
[1771341565050,10.7616,83.677,83.613,4.34939953]
[1771341565247,4.32297912,83.687,83.613,4.34939953]
[1771341565452,4.32297912,83.666,83.61,6.12046585]
[1771341566154,4.32297912,83.666,83.591,4.34939953]
[1771341566353,21.5131,83.716,83.586,75.26]
[1771341566354,4.32297912,83.699,83.611,4.34939953]
[1771341566555,4.32297912,83.699,83.631,4.34939953]
[1771341566753,10.7594,83.694,83.632,4.34939953]
[1771341567160,4.32297912,83.699,83.632,4.34939953]
[1771341567161,10.7606,83.684,83.632,4.34939953]
[1771341567563,4.32297912,83.699,83.63,6.12046585]
[1771341567760,4.32297912,83.699,83.607,4.34939953]
[1771341567966,10.7618,83.675,83.609,15.11959953]
[1771341568263,10.7618,83.675,83.61,4.34939953]
[1771341568459,10.7618,83.675,83.62,6.12046585]
[1771341568659,10.7606,83.685,83.62,10.46986538]
[1771341569254,10.7606,83.685,83.621,10.7687]
[1771341569662,4.32297912,83.699,83.64,6.12046585]
[1771341569663,10.7592,83.695,83.64,6.12046585]
[1771341570063,4.32297912,83.699,83.64,6.12046585]
[1771341570465,4.32297912,83.699,83.622,4.34939953]
[1771341570662,4.32297912,83.699,83.6,6.12046585]
[1771341570663,4.32297912,83.699,83.605,75.28]
[1771341570868,4.32297912,83.699,83.6,10.46986538]
[1771341571069,10.7645,83.654,83.6,10.46986538]
[1771341571365,4.32297912,83.668,83.601,10.7712]
[1771341571565,10.7643,83.656,83.601,4.34939953]
[1771341571765,4.32297912,83.668,83.601,4.34939953]
[1771341572767,10.7639,83.659,83.601,4.34939953]
[1771341573164,4.32297912,83.668,83.601,4.34939953]
[1771341574273,10.7637,83.661,83.602,4.34939953]
[1771341575174,10.7655,83.647,83.602,4.34939953]
[1771341575372,4.32297912,83.668,83.602,4.34939953]
[1771341575571,4.32297912,83.695,83.602,4.34939953]
[1771341575771,4.32297912,83.672,83.62,6.12046585]
[1771341575976,4.32297912,83.672,83.603,10.771]
[1771341576174,10.7624,83.671,83.618,10.7691]
[1771341576474,4.32297912,83.692,83.64,6.12046585]
[1771341577070,4.32297912,83.711,83.64,6.12046585]
[1771341577470,4.32297912,83.711,83.641,4.34939953]
[1771341577770,4.32297912,83.711,83.66,6.12046585]
[1771341578175,4.32297912,83.739,83.66,6.12046585]
[1771341578367,4.32297912,83.739,83.661,4.34939953]
[1771341578368,10.7558,83.722,83.661,4.34939953]
[1771341578567,4.32297912,83.739,83.661,4.34939953]
[1771341578780,4.32297912,83.739,83.68,6.12046585]
[1771341579168,4.32297912,83.739,83.681,4.34939953]
[1771341579478,4.32297912,83.769,83.7,10.46986538]
[1771341579975,10.7501,83.766,83.705,4.34939953]
[1771341580170,4.32297912,83.769,83.705,4.34939953]
[1771341580368,10.7512,83.758,83.705,4.34939953]
[1771341580881,4.32297912,83.757,83.69,6.12046585]
[1771341581481,4.32297912,83.757,83.68,6.12046585]
[1771341581675,167.1752,83.791,83.67,6.12046585]
[1771341581676,10.7556,83.724,83.67,6.12046585]
[1771341582170,10.7556,83.724,83.656,4.34939953]
[1771341582171,10.7568,83.714,83.66,6.12046585]
[1771341582365,4.32297912,83.734,83.661,4.34939953]
[1771341582875,4.32297912,83.754,83.7,6.12046585]
[1771341583479,4.32297912,83.778,83.701,4.34939953]
[1771341584166,4.32297912,83.778,83.65,6.12046585]
[1771341584167,4.32297912,83.769,83.68,10.46986538]
[1771341584371,10.7521,83.751,83.681,4.04070651]
[1771341584880,10.7532,83.742,83.681,4.04070651]
[1771341585375,4.29697551,83.75,83.681,4.04070651]
[1771341585569,15.04917551,83.75,83.691,10.7597]
[1771341585877,4.29697551,83.75,83.681,4.04070651]
[1771341586075,10.7523,83.749,83.69,10.7598]
[1771341586268,10.7523,83.749,83.68,6.12046585]
[1771341586269,10.7523,83.749,83.691,4.04070651]
[1771341586475,4.29697551,83.777,83.701,4.04070651]
[1771341586670,10.7516,83.754,83.701,4.04070651]
[1771341586876,4.29697551,83.769,83.7,6.12046585]
[1771341588269,4.29697551,83.769,83.701,4.04070651]
[1771341588475,4.29697551,83.769,83.701,14.79910651]
[1771341588678,167.1021,83.828,83.647,36.0]
[1771341588679,4.29697551,83.814,83.702,4.04070651]
[1771341588870,4.29697551,83.814,83.743,4.04070651]
[1771341588871,10.746,83.798,83.743,4.04070651]
[1771341589273,75.26,83.854,83.703,75.26]
[1771341589274,4.29697551,83.838,83.761,4.04070651]
[1771341589575,10.743,83.822,83.761,4.04070651]
[1771341589774,4.29697551,83.838,83.761,4.04070651]
[1771341590077,4.29697551,83.814,83.75,6.12046585]
[1771341590577,4.29697551,83.814,83.74,4.04070651]
[1771341590777,4.29697551,83.814,83.74,10.16117236]
[1771341590981,4.29697551,83.849,83.76,10.16117236]
[1771341591179,4.29697551,83.849,83.761,4.04070651]
[1771341591483,10.7454,83.803,83.76,6.12046585]
[1771341591875,4.29697551,83.819,83.741,4.25296658]
[1771341592081,4.29697551,83.819,83.76,6.12046585]
[1771341595077,10.7458,83.8,83.76,6.12046585]
[1771341597083,10.7468,83.792,83.741,4.25296658]
[1771341597384,4.29697551,83.819,83.741,4.25296658]
[1771341597983,10.7466,83.793,83.742,10.7532]
[1771341598190,4.29697551,83.819,83.76,6.12046585]
[1771341598578,10.7443,83.812,83.761,4.25296658]
[1771341599090,4.29697551,83.819,83.762,10.7505]
[1771341600291,4.00162294,83.873,83.784,4.25296658]
[1771341600488,6.12046585,83.87,83.79,6.12046585]
[1771341600689,4.00162294,83.869,83.79,6.12046585]
[1771341600893,4.00162294,83.869,83.791,4.25296658]
[1771341601280,4.00162294,83.848,83.749,4.25296658]
[1771341601485,4.00162294,83.848,83.722,21.5113]
[1771341601486,4.00162294,83.848,83.76,6.12046585]
[1771341601680,4.00162294,83.848,83.79,6.12046585]
[1771341601985,4.00162294,83.848,83.789,4.25296658]
[1771341601986,4.00162294,83.828,83.769,4.25296658]
[1771341602184,4.00162294,83.859,83.78,6.12046585]
[1771341602388,10.7398,83.847,83.781,4.25296658]
[1771341602687,4.00162294,83.879,83.811,4.25296658]
[1771341602889,4.00162294,83.899,83.811,4.25296658]
[1771341603085,4.00162294,83.899,83.82,6.12046585]
[1771341603285,4.00162294,83.899,83.82,16.86356585]
[1771341603487,10.7368,83.87,83.82,21.11653243]
[1771341603688,4.00162294,83.899,83.82,10.37343243]
[1771341603994,4.00162294,83.899,83.8,6.12046585]
[1771341603995,4.00162294,83.87,83.801,4.25296658]
[1771341604181,4.00162294,83.87,83.78,6.12046585]
[1771341604182,4.00162294,83.869,83.78,6.12046585]
[1771341604587,4.00162294,83.869,83.779,4.25296658]
[1771341604588,4.00162294,83.843,83.76,4.25296658]
[1771341605090,4.00162294,83.809,83.738,4.25296658]
[1771341605289,4.00162294,83.827,83.738,4.25296658]
[1771341605682,4.00162294,83.827,83.742,10.7532]
[1771341605683,10.7465,83.795,83.742,10.7532]
[1771341605885,4.00162294,83.827,83.738,4.25296658]
[1771341606092,4.00162294,83.809,83.738,4.25296658]
[1771341607088,4.00162294,83.809,83.73,6.12046585]
[1771341607293,4.00162294,83.809,83.718,4.25296658]
[1771341607587,4.00162294,83.809,83.694,75.18]
[1771341607588,4.00162294,83.809,83.731,4.25296658]
[1771341607993,4.00162294,83.799,83.731,4.25296658]
[1771341608692,4.00162294,83.799,83.645,167.4654]
[1771341608693,10.7513,83.757,83.711,4.25296658]
[1771341608891,6.12046585,83.79,83.691,4.25296658]
[1771341608892,4.00162294,83.77,83.691,4.25296658]
[1771341609200,4.00162294,83.789,83.711,4.25296658]
[1771341609496,4.00162294,83.789,83.69,6.12046585]
[1771341609790,4.00162294,83.729,83.647,4.25296658]
[1771341609989,4.00162294,83.729,83.6,6.12046585]
[1771341609990,4.00162294,83.709,83.64,6.12046585]
[1771341610181,4.00162294,83.709,83.624,4.25296658]
[1771341610493,4.00162294,83.709,83.631,4.25296658]
[1771341610789,4.00162294,83.709,83.63,6.585e-05]
[1771341610994,167.3128,83.722,83.608,4.25296658]
[1771341610995,4.00162294,83.689,83.608,4.25296658]
[1771341611383,4.00162294,83.687,83.608,4.25296658]
[1771341611585,4.00162294,83.687,83.6,6.12046585]
[1771341611586,4.00162294,83.669,83.587,4.25296658]
[1771341611889,10.7647,83.653,83.6,6.12046585]
[1771341612086,4.00162294,83.669,83.601,4.25296658]
[1771341612282,10.7614,83.678,83.604,4.25296658]
[1771341612487,10.7614,83.678,83.62,6.12046585]
[1771341613003,10.7628,83.667,83.62,6.12046585]
[1771341614193,10.7613,83.679,83.621,4.25296658]
[1771341614395,4.21102647,83.717,83.621,4.25296658]
[1771341614691,10.7582,83.703,83.641,3.95528052]
[1771341615001,167.2408,83.758,83.6,6.12046585]
[1771341615002,6.12046585,83.73,83.661,3.95528052]
[1771341615191,10.33149232,83.73,83.661,3.95528052]
[1771341615387,4.21102647,83.729,83.661,3.95528052]
[1771341615991,10.7565,83.716,83.661,3.95528052]
[1771341616393,10.33149232,83.75,83.67,6.12046585]
[1771341616690,10.7551,83.727,83.671,3.95528052]
[1771341617100,10.7551,83.727,83.601,167.5537]
[1771341617101,10.7582,83.703,83.639,10.7664]
[1771341617391,10.7582,83.703,83.66,6.12046585]
[1771341617598,10.7567,83.715,83.66,6.12046585]
[1771341617990,4.21102647,83.751,83.68,6.12046585]
[1771341618185,4.21102647,83.751,83.65,6.12046585]
[1771341618186,4.21102647,83.748,83.614,36.0]
[1771341618403,4.21102647,83.739,83.66,6.12046585]
[1771341619501,10.7566,83.716,83.66,6.12046585]
[1771341619899,10.7566,83.716,83.65,6.11964288]
[1771341620092,4.21102647,83.719,83.65,6.11964288]
[1771341620893,4.21102647,83.719,83.645,3.95528052]
[1771341621094,10.7572,83.711,83.645,3.95528052]
[1771341621691,4.21102647,83.719,83.66,6.11964288]
[1771341621890,10.7559,83.721,83.661,3.95528052]
[1771341622099,4.21102647,83.739,83.661,3.95528052]
[1771341622699,4.21102647,83.739,83.65,6.11964288]
[1771341623195,4.21102647,83.719,83.65,6.11964288]
[1771341623702,10.7568,83.715,83.65,10.0749234]
[1771341624097,10.7568,83.715,83.651,3.95528052]
[1771341624294,10.7568,83.715,83.65,6.11964288]
[1771341624295,4.21102647,83.719,83.652,3.95528052]
[1771341624699,10.7553,83.726,83.67,6.11964288]
[1771341625296,10.7567,83.715,83.652,3.95528052]
[1771341626190,14.96892647,83.706,83.65,6.11964288]
[1771341626394,6.11964288,83.75,83.632,3.95528052]
[1771341626395,4.21102647,83.699,83.632,3.95528052]
[1771341626597,10.7602,83.688,83.632,3.95528052]
[1771341627406,10.7612,83.68,83.632,3.95528052]
[1771341627600,10.7612,83.68,83.582,11.95]
[1771341627601,4.21102647,83.699,83.612,3.95528052]
[1771341627904,4.21102647,83.671,83.596,10.7719]
[1771341628098,4.21102647,83.671,83.592,3.95528052]
[1771341628303,4.21102647,83.671,83.551,21.5553]
[1771341628304,4.21102647,83.691,83.611,3.95528052]
[1771341628701,6.11964288,83.7,83.61,6.11964288]
[1771341628702,4.21102647,83.668,83.61,6.11964288]
[1771341628903,4.21102647,83.668,83.59,10.0749234]
[1771341629396,4.21102647,83.668,83.59,20.8475234]
[1771341629792,10.7629,83.667,83.609,10.7703]
[1771341630196,4.21102647,83.689,83.611,3.95528052]
[1771341630393,10.7612,83.68,83.624,10.7682]
[1771341630613,4.21102647,83.689,83.624,10.7682]
[1771341630908,4.21102647,83.689,83.61,6.11964288]
[1771341630909,4.21102647,83.711,83.631,3.95528052]
[1771341632008,4.21102647,83.711,83.6,6.11964288]
[1771341632009,4.21102647,83.711,83.65,6.11964288]
[1771341632599,10.7574,83.709,83.65,6.11964288]
[1771341632799,4.21102647,83.711,83.65,6.11964288]
[1771341633007,10.7596,83.693,83.65,6.11964288]
[1771341633306,4.21102647,83.711,83.63,6.11964288]
[1771341633605,4.21102647,83.711,83.632,3.95528052]
[1771341634300,10.7602,83.688,83.632,3.95528052]
[1771341634702,10.7602,83.688,83.586,35.9]
[1771341634703,4.21102647,83.699,83.575,3.95528052]
[1771341635000,10.764,83.658,83.62,6.11964288]
[1771341635206,10.764,83.658,83.6,6.11964288]
[1771341635397,4.21102647,83.673,83.62,6.11964288]
[1771341635598,4.21102647,83.673,83.601,3.95528052]
[1771341635907,4.21102647,83.673,83.608,10.7703]
[1771341635908,10.7634,83.663,83.608,10.7703]
[1771341636109,4.21102647,83.673,83.601,3.95528052]
[1771341637000,4.21102647,83.673,83.6,6.11964288]
[1771341637001,4.21102647,83.673,83.604,3.95528052]
[1771341637401,4.21102647,83.673,83.6,6.11964288]
[1771341638903,4.21102647,83.673,83.548,11.95]
[1771341638904,4.21102647,83.653,83.571,3.95528052]
[1771341639100,6.11964288,83.66,83.59,6.11964288]
[1771341639295,4.21102647,83.669,83.591,3.95528052]
[1771341639499,10.7652,83.649,83.592,3.95528052]
[1771341639908,4.21102647,83.669,83.592,3.95528052]
[1771341640709,10.7661,83.642,83.592,3.95528052]
[1771341641604,10.7673,83.633,83.592,3.95528052]
[1771341642314,10.7673,83.633,83.59,6.11964288]
[1771341642315,4.21102647,83.649,83.572,3.95528052]
[1771341642904,10.7671,83.634,83.59,6.11964288]
[1771341643308,6.11964288,83.67,83.59,6.11964288]
[1771341643309,4.21102647,83.669,83.591,3.95528052]
[1771341643809,10.7668,83.636,83.591,3.95528052]
[1771341644017,4.21102647,83.669,83.591,3.95528052]
[1771341644310,10.7673,83.632,83.591,3.95528052]
[1771341644501,3.90697798,83.651,83.591,3.95528052]
[1771341644904,3.90697798,83.651,83.59,6.11964288]
[1771341644905,10.7661,83.642,83.594,4.06897426]
[1771341645107,3.90697798,83.669,83.594,4.06897426]
[1771341645512,10.7678,83.629,83.594,4.06897426]
[1771341646213,10.7686,83.622,83.594,4.06897426]
[1771341646513,3.90697798,83.651,83.59,6.11964288]
[1771341646716,75.3,83.675,83.57,6.11964288]
[1771341646717,3.90697798,83.627,83.57,6.11964288]
[1771341646920,3.90697798,83.627,83.54,6.11964288]
[1771341647208,3.90697798,83.627,83.517,4.06897426]
[1771341647209,10.7739,83.582,83.517,4.06897426]
[1771341647413,3.90697798,83.589,83.521,4.06897426]
[1771341647608,3.90697798,83.569,83.5,6.11964288]
[1771341647805,10.7768,83.559,83.5,6.11964288]
[1771341648017,3.90697798,83.569,83.5,6.11964288]
[1771341648603,10.7775,83.554,83.5,6.11964288]
[1771341648806,10.7775,83.554,83.453,35.9]
[1771341648807,3.90697798,83.569,83.49,6.11964288]
[1771341649317,3.90697798,83.569,83.51,6.11964288]
[1771341649512,3.90697798,83.589,83.511,2.55902396]
[1771341649912,10.7739,83.582,83.529,10.7805]
[1771341650112,3.90697798,83.589,83.511,2.55902396]
[1771341650307,21.5345,83.633,83.531,2.15633592]
[1771341650308,3.90697798,83.609,83.531,2.15633592]
[1771341651912,10.7715,83.6,83.533,10.7801]
[1771341652116,10.7715,83.6,83.531,2.15633592]
[1771341652117,3.90697798,83.609,83.531,2.15633592]
[1771341652415,3.90697798,83.609,83.552,10.7776]
[1771341652613,3.90697798,83.609,83.55,6.11964288]
[1771341652614,3.9264136,83.629,83.551,2.15032984]
[1771341652916,3.9264136,83.629,83.507,167.7419]
[1771341652917,3.9264136,83.569,83.46,2.15032984]
[1771341653123,10.04605648,83.54,83.461,2.15032984]
[1771341653314,3.9264136,83.539,83.461,2.15032984]
[1771341653829,3.9264136,83.539,83.442,75.34]
[1771341653830,3.9264136,83.569,83.481,2.14765758]
[1771341654421,3.9264136,83.569,83.501,2.15541858]
[1771341654717,3.9264136,83.589,83.52,6.11964288]